bitfinex/quotes_ETHUSD_20220215
["timestamp","ask_amount","ask_price","bid_price","bid_amount"]
[1644915017909,0.82329417,3080.8,3080.7,0.96717362]
[1644915018212,0.82329417,3080.8,3080.7,1.56717362]
[1644915018410,0.82329417,3080.8,3080.7,0.6]
[1644915018814,1.23026795,3081.0,3080.7,0.6]
[1644915019010,1.23026795,3081.0,3080.7,2.22299]
[1644915019211,1.23026795,3080.9,3080.7,0.8243527]
[1644915019410,0.82182035,3080.8,3080.7,0.8243527]
[1644915019859,0.82182035,3080.8,3080.7,0.5243527]
[1644915020062,0.468,3080.8,3080.7,0.5243527]
[1644915022661,0.468,3080.8,3080.6,2.43448]
[1644915022662,1.28905665,3080.8,3080.6,2.2588327]
[1644915022864,1.28905665,3080.8,3080.5,0.115]
[1644915022865,1.27974,3080.8,3080.5,0.115]
[1644915023063,25.19974937,3080.7,3080.5,0.115]
[1644915023262,2.08238145,3080.6,3080.5,0.115]
[1644915023465,2.08238145,3080.6,3080.5,0.9268]
[1644915023466,3.08238145,3080.6,3080.5,0.9268]
[1644915023909,2.89421145,3080.6,3080.5,0.9268]
[1644915024109,1.27983,3080.6,3080.5,0.9268]
[1644915024510,0.468,3080.6,3080.5,0.9268]
[1644915024711,0.468,3080.6,3080.5,1.2268]
[1644915025310,1.08341565,3080.6,3080.5,1.2268]
[1644915025510,1.08341565,3080.6,3080.3,1.37687901]
[1644915025710,0.61541565,3080.5,3080.3,1.37687901]
[1644915026114,0.61541565,3080.6,3080.3,1.37687901]
[1644915026311,0.61541565,3080.5,3080.3,1.37687901]
[1644915026712,0.61541565,3080.6,3080.3,1.37687901]
[1644915026910,0.00265514,3080.5,3080.3,1.37687901]
[1644915027111,0.00265514,3080.5,3080.3,1.67687901]
[1644915029362,0.00265514,3080.6,3080.3,1.67687901]
[1644915030266,0.61541565,3080.5,3080.3,1.67687901]
[1644915030465,0.00265514,3080.6,3080.3,1.67687901]
[1644915031909,1.24700953,3080.6,3080.3,1.67687901]
[1644915032510,1.24700953,3080.6,3080.3,2.48850291]
[1644915032712,1.24700953,3080.6,3080.4,0.81162]
[1644915033112,1.24700953,3080.6,3080.5,0.3]
[1644915033312,2.39579172,3080.8,3080.5,0.3]
[1644915033812,0.66346216,3080.8,3080.5,0.3]
[1644915034217,0.65985756,3080.8,3080.5,1.11161]
[1644915034714,0.49715147,3080.8,3080.5,1.11161]
[1644915036964,0.50176515,3080.8,3080.5,1.11161]
[1644915037164,0.00461368,3080.8,3080.5,1.11161]
[1644915037764,2.6324178,3081.1,3080.5,1.11161]
[1644915037965,0.468,3081.0,3080.5,1.11161]
[1644915038164,0.00461368,3080.8,3080.5,1.11161]
[1644915039019,0.468,3081.0,3080.5,1.11161]
[1644915039420,0.00461368,3080.8,3080.5,1.11161]
[1644915039817,0.00461368,3080.8,3080.6,0.8115433]
[1644915040017,0.00461368,3080.8,3080.6,1.6230333]
[1644915040219,0.00461368,3080.8,3080.7,0.3]
[1644915040417,1.31059678,3081.1,3080.7,1.92301]
[1644915040618,0.00461368,3080.9,3080.7,1.62301]
[1644915041423,2.13146458,3081.1,3080.7,1.62301]
[1644915041822,0.00461368,3081.0,3080.7,2.4345423]
[1644915042667,2.12205162,3081.1,3080.7,2.4345423]
[1644915042868,0.00461368,3081.0,3080.8,1.1115243]
[1644915043067,0.00461368,3081.0,3080.8,1.9230443]
[1644915043667,1.27278738,3081.1,3080.8,1.9230443]
[1644915044568,2.08425738,3081.1,3080.8,1.9230443]
[1644915044769,1.91632761,3081.1,3080.8,1.6230443]
[1644915044969,1.91632761,3081.1,3081.0,1.0340789]
[1644915045172,0.61520379,3081.3,3081.0,1.0340789]
[1644915045368,0.61520379,3081.3,3080.8,1.11152]
[1644915045369,0.00459089,3081.2,3080.9,0.67240762]
[1644915045869,0.00459089,3081.2,3081.0,0.3]
[1644915046324,0.61520379,3081.4,3081.0,0.3]
[1644915046524,0.61520379,3081.4,3081.0,1.1114]
[1644915046525,0.00459097,3081.3,3081.0,1.1114]
[1644915046726,0.81598097,3081.3,3081.0,0.8114]
[1644915046928,1.43382663,3081.3,3081.0,0.8114]
[1644915047125,0.81862284,3081.3,3081.0,0.8114]
[1644915047525,0.81403187,3081.3,3081.0,0.8114]
[1644915047726,0.81403187,3081.3,3081.1,0.8114159]
[1644915047727,1.42923566,3081.3,3081.1,0.8114159]
[1644915047929,0.81403187,3081.3,3081.1,0.8114159]
[1644915048127,0.81403187,3081.3,3081.2,0.6]
[1644915048326,0.00264187,3081.3,3081.2,0.59]
[1644915048827,0.00264187,3081.3,3081.2,0.3]
[1644915049627,0.61784566,3081.3,3081.2,0.3]
[1644915049862,0.61784566,3081.3,3081.0,0.8114]
[1644915050064,0.61784566,3081.3,3081.1,0.8113889]
[1644915052264,1.84064215,3081.3,3081.1,0.8113889]
[1644915052467,1.22279649,3081.2,3081.1,0.8113889]
[1644915052667,1.83800028,3081.2,3081.1,0.8113889]
[1644915052867,0.61520379,3081.2,3081.1,0.8113889]
[1644915053722,1.83800028,3081.2,3081.1,0.8113889]
[1644915053923,0.61520379,3081.2,3081.1,0.8113889]
[1644915054123,1.83800028,3081.2,3081.1,0.8113889]
[1644915054922,1.22279649,3081.2,3081.1,0.8113889]
[1644915055122,1.83800028,3081.2,3081.1,0.8113889]
[1644915055322,1.22279649,3081.2,3081.1,0.8113889]
[1644915056223,0.61786031,3081.2,3081.1,0.8113889]
[1644915056423,1.8406568,3081.2,3081.1,0.8113889]
[1644915058562,1.22279649,3081.2,3081.1,0.8113889]
[1644915060062,1.22279649,3081.2,3081.0,3.5454642]
[1644915060262,1.22279649,3081.1,3081.0,2.7341081]
[1644915060463,1.22279649,3081.1,3081.0,1.9227081]
[1644915060963,1.22279649,3081.1,3081.0,2.2227081]
[1644915064116,1.22279649,3081.1,3081.0,3.0340781]
[1644915064967,1.22279649,3081.1,3081.0,1.9227081]
[1644915065564,1.22279649,3081.1,3081.0,0.74975747]
[1644915066775,0.8114,3081.5,3081.0,0.74975747]
[1644915066776,0.82230814,3081.8,3081.1,1.04434765]
[1644915066970,0.01499816,3081.8,3081.2,0.81128]
[1644915067170,0.01499816,3081.8,3081.7,0.90858541]
[1644915067569,0.01499816,3081.8,3081.7,1.20858541]
[1644915067766,0.01499816,3081.8,3081.7,1.50858541]
[1644915067966,0.82230814,3082.4,3081.7,1.50858541]
[1644915067967,1.63349814,3082.4,3081.7,2.01977371]
[1644915068167,0.81119,3082.3,3081.7,1.20858541]
[1644915068367,1.63349814,3082.3,3081.7,0.3]
[1644915068610,1.63349814,3082.3,3081.6,0.3]
[1644915069212,0.81134,3082.1,3081.8,0.8112]
[1644915069421,0.468,3082.0,3080.8,0.5]
[1644915069618,24.43748142,3081.9,3080.8,0.5]
[1644915069812,2.61438145,3081.8,3080.8,0.5]
[1644915070014,0.468,3081.7,3080.8,0.5]
[1644915070218,0.81144,3081.6,3080.7,0.8114389]
[1644915070413,0.468,3081.5,3081.0,0.81157]
[1644915070611,0.00457817,3081.4,3081.0,0.81157]
[1644915070813,0.468,3081.3,3081.0,0.81157]
[1644915072565,0.00457809,3081.4,3081.0,0.81157]
[1644915072771,0.49822306,3081.8,3081.3,0.81125]
[1644915072967,0.49822306,3081.8,3081.3,1.44614]
[1644915073266,1.0,3082.1,3081.3,0.6349]
[1644915073267,0.00457809,3081.4,3081.3,0.6349]
[1644915074066,2.06960814,3082.2,3081.3,0.6349]
[1644915074265,1.2473,3082.2,3081.3,0.6349]
[1644915074669,1.62266,3082.1,3081.3,0.6349]
[1644915074867,0.81128,3082.0,3081.3,1.4462113]
[1644915075065,0.81128,3082.0,3081.4,0.8113]
[1644915075467,0.00456701,3081.8,3081.4,0.8113]
[1644915075966,0.00456701,3081.8,3081.7,0.94574788]
[1644915076415,0.49053297,3082.4,3081.7,0.94574788]
[1644915076815,0.00456701,3081.9,3081.5,1.62248]
[1644915077214,0.00456701,3081.9,3081.7,1.6224]
[1644915077615,0.81121,3082.1,3081.7,1.6224]
[1644915077817,0.61679352,3082.2,3081.7,1.6224]
[1644915078415,1.42802352,3082.2,3081.7,1.6224]
[1644915078817,0.81126,3082.1,3081.7,1.6224]
[1644915079217,1.42805352,3082.1,3081.7,1.6224]
[1644915079716,2.23934352,3082.1,3081.7,1.6224]
[1644915079966,1.42807352,3082.0,3081.7,1.6224]
[1644915080370,0.61679352,3082.0,3081.7,1.6224]
[1644915080768,0.62134937,3082.1,3081.7,1.6224]
[1644915080970,1.43260937,3082.1,3081.7,1.6224]
[1644915081170,1.08479352,3082.0,3081.7,1.6224]
[1644915081569,0.468,3082.0,3081.7,1.6224]
[1644915081769,1.08479352,3082.0,3081.7,1.6224]
[1644915081971,0.61942218,3081.9,3081.7,1.6224]
[1644915082371,0.00262866,3081.9,3081.7,1.6224]
[1644915083374,0.00455585,3082.0,3081.7,1.6224]
[1644915083624,0.61942218,3082.1,3081.7,1.6224]
[1644915083829,0.61679352,3082.0,3081.7,1.6224]
[1644915084026,0.00262866,3081.9,3081.7,1.6224]
[1644915084229,0.81126,3082.0,3081.7,1.6224]
[1644915084427,0.00262866,3081.9,3081.7,1.6224]
[1644915085632,0.61942218,3081.9,3081.7,0.14973122]
[1644915086631,0.61679352,3081.8,3081.6,0.81131]
[1644915086830,0.61679352,3081.8,3081.4,1.62256]
[1644915086831,0.81135,3081.7,3081.4,1.62256]
[1644915087031,1.1118894,3081.6,3081.4,1.62256]
[1644915089066,1.1118894,3081.6,3080.9,1.62281]
[1644915089268,1.42822352,3081.5,3080.9,1.62281]
[1644915089465,1.1118894,3081.4,3080.9,1.62281]
[1644915089866,1.1118894,3081.3,3080.9,1.62281]
[1644915090071,1.11643533,3081.4,3080.9,1.62281]
[1644915090269,1.1118894,3081.2,3080.9,1.62281]
[1644915090467,1.1118894,3081.3,3080.9,1.62281]
[1644915090668,1.1118894,3081.1,3081.0,0.8114075]
[1644915090870,1.1118894,3081.1,3080.9,1.62281]
[1644915091119,1.11643518,3081.4,3080.8,1.62282]
[1644915091317,1.11643518,3081.4,3080.5,1.6228538]
[1644915091318,0.81152,3081.1,3080.5,1.6228538]
[1644915091517,1.1118894,3081.0,3080.4,1.62306]
[1644915091718,0.468,3081.0,3080.5,0.25529135]
[1644915091918,1.1118894,3080.9,3080.5,0.25529135]
[1644915092121,1.5798894,3080.9,3080.5,0.25529135]
[1644915092319,10.3118894,3080.8,3079.9,0.00915641]
[1644915092520,5.0798894,3080.7,3080.0,0.2506689]
[1644915092720,1.5798894,3080.6,3080.0,0.2506689]
[1644915092919,1.1118894,3080.5,3080.0,0.2506689]
[1644915093119,0.468,3080.4,3080.0,0.2506689]
[1644915093319,1.1118894,3080.3,3080.0,0.2506689]
[1644915093522,1.1118894,3080.3,3079.9,0.00918047]
[1644915093523,0.468,3080.2,3079.9,0.00918047]
[1644915093719,1.1118894,3080.1,3080.0,0.2506889]
[1644915093920,1.5798894,3080.1,3080.0,0.2506889]
[1644915094321,1.5798894,3080.1,3079.9,0.00918047]
[1644915094522,1.1118894,3080.0,3079.4,0.8117404]
[1644915094723,1.1118894,3080.0,3079.9,0.00918045]
[1644915094962,1.1118894,3080.0,3079.9,0.25991709]
[1644915095764,1.1118894,3080.0,3079.9,0.25073664]
[1644915095966,5.7,3079.8,3079.1,1.62362]
[1644915096174,24.78135142,3079.7,3079.2,0.24615137]
[1644915096369,24.78135142,3079.7,3079.3,0.24615137]
[1644915096370,0.468,3079.6,3079.3,0.24615137]
[1644915096565,0.468,3079.6,3079.4,0.24615137]
[1644915096767,0.468,3079.6,3079.5,0.24615137]
[1644915097165,0.468,3079.6,3078.7,0.85111073]
[1644915097364,0.468,3079.6,3078.6,1.00953841]
[1644915097365,0.468,3079.6,3078.8,0.24615137]
[1644915097565,0.468,3079.6,3078.4,0.80391351]
[1644915097566,0.468,3079.6,3078.9,0.24615137]
[1644915097768,1.27999,3079.6,3079.0,0.24615137]
[1644915097967,1.27999,3079.6,3079.1,0.24615137]
[1644915097968,23.96948142,3079.5,3079.1,0.24615137]
[1644915098166,23.96948142,3079.5,3079.2,0.24615137]
[1644915098167,0.468,3079.4,3079.2,0.24615137]
[1644915098367,0.468,3079.4,3078.3,10.0]
[1644915098368,0.468,3079.4,3079.3,0.24615137]
[1644915104671,3.95663636,3079.4,3079.3,0.24615137]
[1644915104871,3.95663636,3079.4,3079.2,0.009216]
[1644915104872,4.95663636,3079.4,3079.2,0.009216]
[1644915105070,3.95663636,3079.4,3079.2,0.009216]
[1644915105273,3.32651796,3079.3,3079.2,0.009216]
[1644915105471,0.468,3079.3,3079.2,0.2290459]
[1644915105671,2.7665374,3079.5,3079.2,0.2290459]
[1644915105871,1.468,3079.4,3078.4,1.62387]
[1644915106117,0.468,3079.4,3078.7,0.81197]
[1644915106316,0.468,3079.4,3078.8,0.20532612]
[1644915106518,0.468,3079.4,3078.9,0.20532612]
[1644915106721,0.468,3079.4,3079.0,0.20532612]
[1644915106918,0.468,3079.4,3079.1,0.20532612]
[1644915107120,0.468,3079.4,3078.5,0.60495936]
[1644915107121,0.468,3079.4,3079.3,1.065541]
[1644915107320,11.45446683,3080.2,3079.3,0.20532612]
[1644915107720,0.84836683,3080.2,3079.4,0.20532612]
[1644915107922,0.84836683,3080.2,3079.5,0.20532612]
[1644915108120,1.7054,3080.4,3079.6,0.20532612]
[1644915108321,1.16184175,3080.3,3079.7,0.20532612]
[1644915108521,1.16184175,3080.3,3079.3,2.71761547]
[1644915108729,0.468,3080.4,3079.4,1.01673999]
[1644915109021,0.468,3080.4,3079.5,0.20503999]
[1644915109223,0.468,3080.4,3079.6,0.00980177]
[1644915109422,0.13819997,3080.5,3079.6,0.00980177]
[1644915109423,0.13819997,3080.5,3079.7,0.20503999]
[1644915109619,0.13819997,3080.5,3079.8,0.81166]
[1644915109869,0.13819997,3080.5,3079.9,0.20503999]
[1644915110274,0.13819997,3080.5,3079.7,1.62331]
[1644915110470,0.13819997,3080.5,3079.8,0.20157354]
[1644915110771,3.5725126,3080.5,3080.0,0.81168]
[1644915110972,0.13819997,3080.5,3080.0,0.81168]
[1644915111170,3.49986872,3080.5,3080.0,0.81168]
[1644915111371,1.16841643,3080.4,3080.0,0.81168]
[1644915111970,1.98014643,3080.4,3080.0,0.81168]
[1644915112171,3.96786872,3080.5,3080.0,0.81168]
[1644915112471,1.1683903,3080.4,3080.0,0.81168]
[1644915112674,3.39412225,3080.3,3080.0,0.81168]
[1644915113738,3.39412225,3080.3,3079.9,1.6234]
[1644915113739,0.468,3080.2,3079.9,1.6234]
[1644915113934,0.468,3080.2,3079.7,0.81181]
[1644915114135,4.20500607,3080.1,3079.8,0.1804186]
[1644915114438,4.20500607,3080.1,3079.6,0.00979342]
[1644915114439,2.0916476,3080.1,3079.6,0.00979342]
[1644915114637,1.2798276,3080.1,3079.6,0.00979342]
[1644915114935,1.27983,3080.1,3079.6,0.82159342]
[1644915115135,0.468,3080.1,3079.7,0.18035221]
[1644915116136,0.468,3080.1,3079.7,0.99209221]
[1644915116338,0.468,3080.1,3079.7,0.81174]
[1644915117137,0.468,3080.1,3079.8,0.18014635]
[1644915117387,0.468,3080.1,3079.7,0.81174]
[1644915117578,0.468,3080.1,3079.8,0.18012298]
[1644915117981,0.8118,3080.0,3079.8,0.18012298]
[1644915118177,0.468,3080.1,3079.8,0.18012298]
[1644915118578,0.468,3080.1,3079.8,0.99189298]
[1644915118781,0.468,3080.1,3079.8,0.81177]
[1644915119183,0.13819997,3080.5,3079.8,0.81177]
[1644915119383,0.85186851,3080.6,3079.9,0.48007216]
[1644915119583,0.00360357,3080.6,3080.0,0.18007216]
[1644915119780,0.00360357,3080.6,3080.1,0.18007216]
[1644915119984,5.831,3080.9,3080.1,0.18007216]
[1644915120183,0.00360392,3080.6,3080.1,0.18007216]
[1644915120780,3.45,3080.5,3080.1,0.05667216]
[1644915120980,3.968,3081.0,3080.1,0.81157]
[1644915121215,0.468,3081.0,3080.1,0.81157]
[1644915121419,0.00376177,3080.6,3080.1,0.81157]
[1644915122217,0.81166,3080.7,3080.1,0.81157]
[1644915122417,2.09132,3081.0,3080.3,1.1115]
[1644915122418,0.00376177,3080.6,3080.3,1.1115]
[1644915123216,0.00376177,3080.6,3080.4,0.81146]
[1644915123420,1.0,3081.3,3080.3,0.3]
[1644915123618,0.00376187,3080.6,3080.0,1.92329]
[1644915123817,0.00376187,3080.6,3080.0,0.3]
[1644915124018,0.00376187,3080.6,3079.8,1.4341]
[1644915124220,0.81542187,3080.6,3079.8,1.7341]
[1644915124521,0.81542187,3080.6,3080.1,0.81169]
[1644915124522,0.00376187,3080.6,3080.1,0.81169]
[1644915124722,1.61679352,3081.4,3080.3,0.3]
[1644915124723,0.61679352,3081.4,3080.3,0.3]
[1644915124972,0.00372622,3080.6,3080.3,1.2714]
[1644915125378,0.00262866,3081.7,3080.6,5.7]
[1644915125673,0.00262866,3081.7,3080.9,0.81117]
[1644915125871,0.00262866,3081.8,3081.0,1.29712623]
[1644915126072,0.00262866,3082.4,3081.6,1.18303865]
[1644915126273,0.00262866,3082.4,3081.6,1.48303865]
[1644915126474,0.00262866,3082.4,3081.8,0.8111]
[1644915126673,0.00262866,3082.4,3081.7,1.0230665]
[1644915127775,0.00262866,3082.4,3081.8,0.81113]
[1644915128475,0.00137066,3082.3,3081.8,0.81113]
[1644915128717,0.00137066,3082.3,3081.7,1.0230665]
[1644915128718,4.11476392,3082.3,3081.7,1.0230665]
[1644915128918,0.81392866,3082.2,3081.7,1.0230665]
[1644915129119,4.17223048,3082.2,3081.7,1.0230665]
[1644915129317,4.19044188,3082.2,3081.7,1.0230665]
[1644915129718,0.00452231,3082.1,3081.7,1.3230665]
[1644915130118,7.3896269,3082.2,3081.7,1.3230665]
[1644915130620,4.01311368,3082.2,3081.7,1.3230665]
[1644915130819,4.01311368,3082.2,3081.7,1.0230665]
[1644915131117,3.30262866,3082.2,3081.7,1.0230665]
[1644915131318,3.30262866,3082.2,3081.7,2.100292]
[1644915133066,3.30262866,3082.2,3081.7,1.0230665]
[1644915133266,3.30262866,3082.2,3081.6,1.62246]
[1644915133465,3.30262866,3082.2,3081.7,0.81127]
[1644915134169,3.30262866,3082.2,3081.6,1.62246]
[1644915134568,3.30262866,3082.2,3081.7,0.81128]
[1644915136728,3.30767223,3082.1,3081.7,0.81128]
[1644915136928,3.30767223,3082.1,3081.1,1.2037]
[1644915136929,0.00262866,3082.0,3081.1,1.2037]
[1644915137131,0.468,3081.9,3081.1,0.87333976]
[1644915137327,0.00262866,3081.8,3081.1,0.87333976]
[1644915137530,0.468,3081.7,3081.1,0.87333976]
[1644915138027,0.468,3081.7,3081.2,1.922654]
[1644915138329,0.468,3081.7,3081.1,0.87333976]
[1644915138928,0.468,3081.7,3081.3,0.81134]
[1644915139128,0.00262866,3081.8,3081.4,0.3]
[1644915139329,0.00262866,3082.0,3081.4,0.3]
[1644915139528,3.768,3082.2,3081.4,0.3]
[1644915139529,0.00262866,3082.1,3081.4,0.3]
[1644915139730,0.00262866,3082.1,3081.6,1.0130362]
[1644915139969,0.00262866,3082.1,3081.6,0.81121]
[1644915140273,0.00262866,3082.1,3081.4,0.3]
[1644915140670,0.00262866,3082.1,3081.2,0.3]
[1644915140867,1.89228486,3082.1,3081.2,0.3]
[1644915141067,1.0782862,3082.0,3081.3,0.81137]
[1644915141277,4.81972033,3081.9,3080.9,0.00979005]
[1644915141469,4.81972033,3081.9,3080.6,1.1592]
[1644915141470,25.04776762,3081.8,3080.6,1.1592]
[1644915141668,5.79028811,3081.7,3080.6,1.1592]
[1644915141871,1.0782862,3081.6,3080.9,0.00908343]
[1644915142070,4.30158039,3081.5,3080.9,0.00908343]
[1644915142270,0.81162,3081.3,3080.9,0.00908343]
[1644915142469,4.17216666,3081.2,3080.9,0.00908343]
[1644915142671,25.51640406,3081.1,3080.0,10.2108]
[1644915142874,25.51640406,3081.1,3079.9,1.2457]
[1644915142875,0.81167,3080.9,3079.9,1.2457]
[1644915143170,1.54692264,3080.8,3079.3,6.9931]
[1644915143373,1.89070854,3080.7,3079.4,0.28361529]
[1644915143614,1.89070854,3080.7,3079.6,0.81178]
[1644915143615,1.2798,3080.6,3079.6,0.81178]
[1644915143822,0.81181,3080.5,3079.7,0.28361529]
[1644915144015,0.468,3080.4,3079.7,0.28361529]
[1644915144217,0.468,3080.4,3079.9,0.00908582]
[1644915144916,3.52240643,3080.3,3079.9,0.00908582]
[1644915145114,3.52240643,3080.3,3079.5,3.37891621]
[1644915145115,3.99040643,3080.3,3079.5,3.37891621]
[1644915145315,3.99040643,3080.3,3079.7,0.3]
[1644915145316,0.468,3080.3,3079.7,0.3]
[1644915145518,0.468,3080.3,3080.0,0.00908557]
[1644915146118,3.38903785,3080.2,3080.0,0.00908557]
[1644915146318,3.33842406,3080.2,3079.8,0.81171]
[1644915146524,3.34011097,3080.2,3080.0,0.00930365]
[1644915146717,0.468,3080.3,3080.0,0.00930365]
[1644915147119,3.34155258,3080.2,3080.0,0.00930365]
[1644915147366,0.468,3080.1,3080.0,0.00930365]
[1644915147667,0.468,3080.1,3078.9,7.1321]
[1644915147668,29.17945389,3080.1,3078.9,7.1321]
[1644915147869,5.20997247,3080.1,3079.9,0.00930378]
[1644915148169,3.41371715,3080.0,3079.9,0.00930378]
[1644915148366,4.88171715,3080.0,3079.9,0.00930378]
[1644915148566,4.69363715,3080.0,3079.9,0.00930378]
[1644915148766,4.22030993,3080.0,3079.0,0.3]
[1644915148968,0.468,3080.0,3079.8,0.00930417]
[1644915149967,0.468,3080.0,3079.6,1.62339]
[1644915150169,0.468,3080.0,3079.7,0.82086921]
[1644915150369,0.468,3080.0,3079.8,0.25615326]
[1644915150676,0.60619997,3080.6,3079.8,1.24190116]
[1644915150870,0.60619997,3080.6,3079.8,2.86508116]
[1644915151123,0.60619997,3080.6,3079.9,0.55615326]
[1644915151319,0.60619997,3080.6,3080.0,0.25615326]
[1644915151523,0.60619997,3080.6,3080.0,0.26527172]
[1644915151723,0.60619997,3080.6,3080.0,0.00911846]
[1644915151724,0.81171,3080.5,3080.0,0.00911846]
[1644915152222,4.19022014,3080.5,3080.0,0.00911846]
[1644915152420,0.81171,3080.5,3079.9,0.8117]
[1644915152626,1.58489254,3080.4,3080.1,0.00911833]
[1644915152823,1.11689254,3080.3,3080.1,0.00911833]
[1644915153022,0.81181,3080.2,3080.1,0.00911833]
[1644915153423,1.27981,3080.2,3080.1,0.00911833]
[1644915153725,2.38912937,3080.2,3080.0,0.00911858]
[1644915153924,1.27981,3080.2,3080.0,0.00911858]
[1644915154129,28.57883598,3080.1,3080.0,0.00911858]
[1644915154426,65.06644746,3080.1,3080.0,0.00911858]
[1644915154625,66.23274746,3080.1,3080.0,0.00911858]
[1644915154873,0.81202,3079.7,3078.7,0.00704224]
[1644915155171,4.58871535,3079.6,3078.8,0.25564274]
[1644915155369,0.468,3079.5,3078.8,0.25564274]
[1644915155568,0.468,3079.5,3078.9,1.14676314]
[1644915155772,0.468,3079.5,3079.0,0.25564274]
[1644915155970,0.468,3079.5,3079.0,1.06755274]
[1644915156170,0.4672,3079.5,3079.1,0.25564274]
[1644915156370,3.78346597,3079.5,3079.0,0.00913345]
[1644915156571,1.27918,3079.5,3079.0,0.00913345]
[1644915156870,1.27918,3079.5,3079.1,0.25564274]
[1644915157073,3.34776772,3079.4,3078.8,1.02533879]
[1644915157273,1.28007,3079.4,3078.9,0.25551377]
[1644915157471,0.468,3079.4,3079.1,0.00913332]
[1644915157671,0.81203,3079.3,3079.2,0.25551377]
[1644915157872,0.468,3079.4,3079.1,0.00913332]
[1644915158074,2.99220118,3079.9,3079.2,0.25537268]
[1644915158075,0.468,3079.8,3079.2,0.25537268]
[1644915158277,0.468,3079.8,3079.2,1.06719268]
[1644915158474,0.468,3079.8,3079.3,0.25537268]
[1644915158730,0.468,3079.8,3079.4,0.22968801]
[1644915159932,0.1,3080.0,3079.4,0.23881963]
[1644915160131,0.1,3080.0,3079.4,0.82089062]
[1644915160333,0.1,3080.0,3079.5,0.8118]
[1644915160735,0.1,3080.0,3079.1,1.11176]
[1644915160736,5.7,3079.9,3079.1,0.30759094]
[1644915160936,5.7,3079.9,3078.9,0.0001059]
[1644915160937,0.01249696,3079.3,3078.9,0.0001059]
[1644915161138,0.01249696,3079.3,3078.5,0.00683856]
[1644915161139,5.846,3079.1,3078.5,0.00683856]
[1644915161333,5.846,3079.1,3077.9,0.8118]
[1644915161334,2.64187259,3079.0,3078.0,0.00683856]
[1644915161532,2.7815087,3079.0,3078.0,0.00683856]
[1644915161732,1.32808341,3078.9,3078.0,0.00683856]
[1644915161932,0.468,3078.8,3078.1,1.24286663]
[1644915162131,0.468,3078.8,3078.2,0.00683856]
[1644915162132,0.8122,3078.7,3078.2,0.00683856]
[1644915162369,0.468,3078.6,3078.2,0.00683856]
[1644915162669,0.468,3078.5,3077.8,1.62433]
[1644915162870,0.1336,3078.9,3077.8,1.62433]
[1644915162871,0.438,3078.4,3077.9,0.18040001]
[1644915163076,0.468,3078.3,3078.0,0.17356145]
[1644915163369,1.6245,3078.6,3078.1,0.00683856]
[1644915163370,0.468,3078.2,3078.1,0.00683856]
[1644915163574,0.468,3078.2,3077.9,1.02742082]
[1644915164971,0.468,3078.2,3077.9,0.00683856]
[1644915165173,0.468,3078.2,3077.8,1.62439]
[1644915165373,0.468,3078.2,3077.9,0.00683856]
[1644915165574,0.468,3078.2,3077.6,0.00683856]
[1644915165973,0.468,3078.2,3077.8,0.0098043]
[1644915166226,0.468,3078.2,3077.8,1.84391043]
[1644915166424,0.468,3078.2,3077.9,0.00683856]
[1644915167023,0.468,3078.2,3077.9,0.01664272]
[1644915167722,0.468,3078.2,3077.9,0.82888272]
[1644915168125,0.468,3078.2,3077.9,0.81907856]
[1644915168323,1.2803,3078.2,3077.9,0.01664272]
[1644915168726,0.10670302,3078.2,3077.9,0.01664272]
[1644915169324,0.10670302,3078.2,3077.9,0.00683856]
[1644915169624,4.11227,3078.3,3077.9,0.01664272]
[1644915169873,1.468,3078.2,3077.9,0.01664272]
[1644915170076,1.5928,3078.2,3077.9,0.00980416]
[1644915170275,1.0,3078.0,3077.9,0.00980416]
[1644915170474,7.314,3078.0,3077.1,0.00683856]
[1644915170674,5.846,3077.7,3077.1,0.00683856]
[1644915170874,1.468,3077.6,3077.1,0.00683856]
[1644915171075,1.468,3077.6,3077.0,1.03669197]
[1644915171379,1.468,3077.6,3077.1,0.00683856]
[1644915171975,1.468,3077.6,3077.1,0.01664478]
[1644915172178,4.74938044,3077.6,3077.1,0.01664478]
[1644915172377,4.74938044,3077.6,3077.1,0.00980622]
[1644915172378,0.81252,3077.5,3077.1,0.00980622]
[1644915172575,0.468,3077.4,3077.1,0.00980622]
[1644915172775,0.468,3077.4,3076.9,0.00683856]
[1644915173177,0.468,3077.4,3077.1,0.00980622]
[1644915173377,1.28052,3077.4,3077.1,0.00980622]
[1644915174023,2.09314,3077.4,3077.1,0.00683856]
[1644915174320,2.09314,3077.4,3077.1,0.00980636]
[1644915174321,1.28062,3077.4,3077.1,0.00980636]
[1644915174624,0.81258,3077.3,3077.1,0.00980636]
[1644915174821,6.314,3077.2,3077.1,0.00980636]
[1644915175022,7.4388,3077.2,3076.8,331.21895987]
[1644915175220,7.65877,3077.1,3076.8,331.21895987]
[1644915175421,0.468,3077.0,3076.8,331.21895987]
[1644915176629,6.314,3077.0,3076.8,331.21895987]
[1644915179474,1.0,3076.9,3076.8,331.21895987]
[1644915179674,1.468,3076.9,3076.8,331.21895987]
[1644915179873,0.468,3076.9,3076.8,331.21895987]
[1644915181620,35.50914149,3076.9,3076.8,331.21895987]
[1644915181824,36.50914149,3076.9,3076.8,331.21895987]
[1644915182019,34.24650278,3076.9,3076.8,331.21895987]
[1644915183423,40.09250278,3076.9,3076.8,331.21895987]
[1644915187568,40.21730278,3076.9,3076.8,331.21895987]
[1644915187771,40.21570278,3076.9,3076.8,331.21895987]
[1644915187969,40.21730278,3076.9,3076.8,331.21895987]
[1644915188171,39.21490278,3076.9,3076.8,331.21895987]
[1644915188369,40.21410278,3076.9,3076.8,331.21895987]
[1644915188629,40.09250278,3076.9,3076.8,331.21895987]
[1644915188835,40.09250278,3076.9,3076.8,329.74395218]
[1644915189031,40.09059908,3076.9,3076.8,329.74395218]
[1644915189231,40.93978452,3076.9,3076.8,329.74395218]
[1644915189832,41.06138452,3076.9,3076.8,329.74395218]
[1644915190031,40.93978452,3076.9,3076.8,329.74395218]
[1644915190230,41.06218452,3076.9,3076.8,329.74395218]
[1644915190431,40.93978452,3076.9,3076.8,329.74395218]
[1644915191131,40.93978452,3076.9,3076.8,329.75072835]
[1644915191531,41.06138452,3076.9,3076.8,329.75072835]
[1644915191933,41.06298452,3076.9,3076.8,329.75072835]